Cogmind - Beta 11.1 @@@ ROGUE MODE // 2022.05.18 @ 22:39:30 Player: RX86 Result: Destroyed self with Mini Grenade Launcher Performance ------------- Evolutions (1) 500 Regions Visited (3) 600 Robots Destroyed (87) 435 Value Destroyed (1765) 1765 Prototype IDs (8) 160 Alien Tech Used (0) 0 Bonus (42) 42 TOTAL SCORE: 3502 Bonus ------- High Alert Combat Kills 96 Friendly Fire -54 Cogmind --------- Core Integrity 0/400 Matter 270/300 Energy 95/125 System Corruption 13% Temperature Cool (1) Movement Hovering (50) Location -9/Materials Parts ------- > --- POWER (1) -------- Light Ion Engine > --- PROPULSION (3) --- Aerolev Unit Aerolev Unit Aerolev Unit > --- UTILITY (3) ------ Weight Redist. System > --- WEAPON (2) ------- Improved EM Shotgun Mini Grenade Launcher > --- INVENTORY (5) ---- Advanced Treads Heavy EM Pulse Gun EM Shotgun Improved Medium Laser Autogun Peak State ------------ > --- POWER ------------ Cooled Ion Engine > --- PROPULSION ------- Aerolev Unit Aerolev Unit Aerolev Unit > --- UTILITY ---------- High-capacity Storage Unit Weight Redist. System Hacking Suite > --- WEAPON ----------- Improved Medium Laser Improved Medium Laser > --- INVENTORY -------- Light Treads Advanced Treads Advanced Treads Advanced Treads Advanced Treads Hover Unit Hover Unit Aerolev Unit Medium Storage Unit Reaction Control System Improved Light Armor Plating Improved Light Armor Plating Improved Light Armor Plating Improved Light Armor Plating Shield Generator Tractor Beam Light EM Pulse Cannon Grenade Launcher Datajack Makeshift Hammer [Rating: 31] Favorites ----------- Power Light Ion Engine Engine Light Ion Engine Propulsion Light Treads Treads Light Treads Leg Aluminum Leg Hover Unit Aerolev Unit Flight Unit Improved VTOL Module Utility Hacking Suite Device Reaction Control System Storage High-capacity Storage Unit Processor Targeting Computer Hackware Hacking Suite Protection Improved Light Armor Plating Weapon Improved Medium Laser Energy Gun Improved Medium Laser Energy Cannon Advanced Beam Cannon Ballistic Gun Assault Rifle Launcher Grenade Launcher Impact Weapon Makeshift Hammer Special Melee Weapon Datajack Build | -11 -10 -10 -9 ------- Run | Scr Mat Min Mat Slots Evolved 2 | . . . 2 Power . | . . . . Propulsion 1 | . . . 1 Utility 1 | . . . 1 Weapon . | . . . . Parts Attached 216 | 5 37 12 162 Power 18 | 1 3 . 14 Engine 18 | 1 3 . 14 Core . | . . . . Reactor . | . . . . Propulsion 114 | 2 21 5 86 Treads 51 | . 10 3 38 Leg 2 | 2 . . . Wheel . | . . . . Hover 43 | . 2 2 39 Flight 18 | . 9 . 9 Utility 28 | 1 3 . 24 Device 10 | . . . 10 Storage 10 | 1 1 . 8 Processor 1 | . 1 . . Hackware 1 | . 1 . . Protection 6 | . . . 6 Artifact . | . . . . Weapon 56 | 1 10 7 38 Energy Gun 30 | 1 6 3 20 Energy Cannon 9 | . . . 9 Ballistic Gun 3 | . 1 . 2 Ballistic Cannon . | . . . . Launcher 4 | . 1 2 1 Special Weapon . | . . . . Impact Weapon 5 | . . 1 4 Slashing Weapon . | . . . . Piercing Weapon . | . . . . Special Melee Weapon 5 | . 2 1 2 Unidentified Prototypes 8 | . . . 8 Corrupted Parts 3 | . 2 1 . System Corruption 5 | . 3 2 . Parts Lost 17 | . 1 2 14 Power 3 | . . . 3 Propulsion 6 | . . 2 4 Utility 2 | . . . 2 Weapon 6 | . 1 . 5 Highest Loss Streak 4 | . 1 2 4 To Critical Strikes 1 | . . . 1 Average Slot Usage (%) 96 | . 90 99 97 Engine 11 | . 10 14 10 Treads 17 | . 16 13 18 Leg 1 | . 5 . . Hover 8 | . . 14 11 Flight 2 | . 5 . 2 Device 4 | . . . 7 Storage 12 | . 14 14 11 Processor 2 | . 11 . . Hackware 8 | . 1 14 9 Protection 2 | . . . 4 Energy Gun 14 | . 14 15 14 Energy Cannon 3 | . . . 5 Launcher 2 | . . 12 . Special Melee Weapon 1 | . 7 . . Naked Turns . | . . . . Heaviest Build 57 | 12 46 48 57 Greatest Support 72 | 20 40 40 72 Greatest Overweight (x) 3 | 1 2 3 3 Average Overweight (x) . | . . 2 . Largest Inventory Capacity 20 | 8 20 20 20 Average Capacity 14 | 7 14 20 13 Most Carried 20 | 5 20 20 20 Average Carried 12 | 3 11 17 11 Final Capacity 20 | 8 20 20 5 Final Carried 18 | 5 17 18 5 Class Distribution -------------------- 83% | Mutant 12% | Scavenger-Mutant 4% | Sprinter Dominant Class ---------------- Mutant | -10/Materials Mutant | -10/Mines Mutant | -9/Materials Resources | -11 -10 -10 -9 ----------- Run | Scr Mat Min Mat Matter Collected 2750 | 198 453 104 1995 Remotely 20 | . . . 20 Salvage Created 3219 | . 468 83 2668 Parts 206 | . 29 6 171 Haulers Intercepted 7 | . 1 . 6 Recyclers Shooed 4 | . . . 4 Parts Field Recycled . | . . . . Retrieved Matter . | . . . . Parts Self-Destructed . | . . . . Prevented . | . . . . Kills | -11 -10 -10 -9 ------- Run | Scr Mat Min Mat Combat Hostiles Destroyed 48 | . 9 3 36 Melee 1 | . . . 1 Guns 30 | . 5 . 25 Cannons 6 | . . . 6 AOE 11 | . 4 3 4 Classes Destroyed 12 | . 7 . 5 Worker 9 | . 1 1 7 Builder 3 | . . . 3 Tunneler 2 | . . . 2 Hauler 7 | . 1 . 6 Recycler 7 | . 1 . 6 Operator 3 | . 1 . 2 Watcher 8 | . 3 . 5 Swarmer 16 | . 6 3 7 Grunt 19 | . 3 . 16 Brawler 1 | . . . 1 Duelist 2 | . . . 2 Sentry 10 | . . . 10 Best Kill Streak 4 | . 4 4 4 Combat Bots Only 4 | . 3 3 4 Max Kills in Single Turn 2 | . 2 2 2 Gunslinging 1 | . . . 1 Exploded 2 | . 2 2 2 Melee 1 | . . . 1 Uniques/NPCs Destroyed . | . . . . Combat | -11 -10 -10 -9 -------- Run | Scr Mat Min Mat Damage Taken 3174 | . 455 128 2591 Core 557 | . 138 8 411 Absorbed by Shields . | . . . . Core Remaining (%) 70 | 100 . 41 . Volleys Fired 200 | . 35 11 154 Largest 2 | . 2 1 2 Hottest 136 | . 80 40 136 Shots Fired 330 | . 42 14 274 Gun 243 | . 38 9 196 Cannon 73 | . . . 73 Launcher 14 | . 4 5 5 Special . | . . . . Kinetic 5 | . 2 . 3 Thermal 207 | . 2 . 205 Explosive 14 | . 4 5 5 Electromagnetic 104 | . 34 9 61 Robot Hit Streak 22 | . 9 20 22 Robot Miss Streak 7 | . 2 . 7 Penetration Max . | . . . . Secondary Targets 4 | . 1 . 3 Max Gunslinging Chain 1 | . 1 . 1 Shots Hit Robots 216 | . 34 12 170 Core Hits 116 | . 20 6 90 Critical Kills . | . . . . Critical Parts Destroyed 1 | . . . 1 Critical Strikes 12 | . . . 12 Burn 9 | . . . 9 Corrupt 2 | . . . 2 Smash 1 | . . . 1 Melee Attacks 15 | . 2 1 12 Impact 5 | . . . 5 Slashing . | . . . . Piercing . | . . . . Sneak Attacks 10 | . 2 . 8 Combat Hostiles . | . . . . Follow-up Attacks . | . . . . Damage Inflicted 4973 | . 761 346 3866 Guns 2436 | . 422 103 1911 Cannons 1062 | . . . 1062 Explosions 1237 | . 339 238 660 Melee 233 | . . . 233 Ramming 5 | . . 5 . Kinetic 31 | . 14 . 17 Thermal 2803 | . 161 26 2616 Explosive 792 | . 190 212 390 Electromagnetic 1109 | . 396 103 610 Impact 233 | . . . 233 Slashing . | . . . . Piercing . | . . . . Highest Corruption 13 | . 10 12 13 Average Corruption 5 | . 7 10 4 Corruption Purged . | . . . . Corruption Blocked . | . . . . Effects 179 | . 54 46 79 Message Errors 47 | . 19 10 18 Matter Fused 41 | . 12 13 16 Heat Flow Errors 30 | . 10 7 13 Energy Discharges 19 | . 5 6 8 Parts Rejected 5 | . 1 . 4 Data Loss (minor) 19 | . 4 6 9 Data Loss (major) 3 | . 1 1 1 Misfires 9 | . 2 3 4 Alerts 1 | . . . 1 Misdirections 2 | . . . 2 Weapon Failures 3 | . . . 3 Overload Shots . | . . . . Overflow Damage 152 | . . 36 116 Projectiles . | . . . . Explosions 39 | . . 36 3 Melee 113 | . . . 113 Knockbacks . | . . . . Impact . | . . . . Kinetic . | . . . . Secondary . | . . . . Self-Inflicted Damage 251 | . 89 102 60 Shots 10 | . 3 3 4 Rammed 1 | . . 1 . Targets Rammed 1 | . . 1 . Kicked . | . . . . Crushed . | . . . . Highest Temperature 367 | . 269 280 367 Average Temperature 87 | . 88 97 85 Received Heat Transfer 855 | . 126 . 729 Effects 2 | . . . 2 Energy Bleed 2 | . . . 2 Siege Activations . | . . . . Robots Corrupted . | . . . . Combat Hostiles . | . . . . Parts Fried 11 | . 4 1 6 Impact Corruptions 2 | . . . 2 Robots Melted . | . . . . Combat Hostiles . | . . . . Parts Melted 11 | . . . 11 Heat Transferred 5886 | . 187 50 5649 Parts Sabotaged . | . . . . Parts Stolen . | . . . . Parts Stripped . | . . . . Power Chain Reactions 9 | . 3 1 5 Missiles Intercepted . | . . . . Alert | -11 -10 -10 -9 ------- Run | Scr Mat Min Mat Peak Influence 694 | . 318 159 694 Initial . | . . . . Average 165 | . 114 34 228 Maximum Alert Level 2 | . 1 . 2 Low Security (%) 67 | 100 72 100 54 Level 1 20 | . 27 . 24 Level 2 12 | . . . 21 Level 3 . | . . . . Level 4 . | . . . . Level 5 . | . . . . High Security . | . . . . Max Security . | . . . . Squads Dispatched 8 | . 1 . 7 Investigation 4 | . . . 4 Extermination . | . . . . Reinforcement 2 | . 1 . 1 Assault 2 | . . . 2 Garrison . | . . . . Intercept . | . . . . Searches Triggered . | . . . . Construction Impeded . | . . . . Haulers Reinforced . | . . . . Active Scanning Responses . | . . . . Cargo Convoy Interrupts . | . . . . Stealth | -11 -10 -10 -9 --------- Run | Scr Mat Min Mat Distress Signals 2 | . . . 2 Communications Jammed . | . . . . Distress Signals . | . . . . Times Spotted 89 | . 18 3 68 Peak Tracking Total 6 | . 4 3 6 Tactical Retreats 8 | . 2 . 6 Traps | -11 -10 -10 -9 ------- Run | Scr Mat Min Mat Traps Triggered 9 | . 8 . 1 Indirectly . | . . . . Trap Hack Attempts . | . . . . Triggered . | . . . . Disarmed . | . . . . Reprogrammed . | . . . . Reused . | . . . . Traps Extracted . | . . . . Installed . | . . . . Triggered . | . . . . Machines | -11 -10 -10 -9 ---------- Run | Scr Mat Min Mat Machines Disabled 7 | . 2 1 4 Max in Single Turn 1 | . 1 1 1 Machines Sabotaged . | . . . . Garrisons Compromised . | . . . . Overloaded Fab Kills . | . . . . Hacking | -11 -10 -10 -9 --------- Run | Scr Mat Min Mat Machines Accessed 22 | . 9 . 13 Terminals 16 | . 7 . 9 Fabricators . | . . . . Repair Stations 1 | . 1 . . Recycling Units 3 | . 1 . 2 Scanalyzers 2 | . . . 2 Garrison Access . | . . . . Total Hacks 59 | . 31 . 28 Successful 39 | . 17 . 22 Failed 20 | . 14 . 6 Catastrophic 4 | . 2 . 2 Database Lockouts . | . . . . Manual 55 | . 28 . 27 Terminals 50 | . 27 . 23 Fabricators . | . . . . Repair Stations 2 | . 2 . . Recycling Units 5 | . 2 . 3 Scanalyzers 2 | . . . 2 Garrison Access . | . . . . Terminal Hacks 12 | . 6 . 6 Terminal Index 2 | . 1 . 1 Alert Level 3 | . 3 . . Unreport Threat 4 | . 1 . 3 Locate Traps 1 | . . . 1 Recall Investigation 1 | . . . 1 Recall Reinforcements 1 | . 1 . . Fabricator Hacks . | . . . . Repair Station Hacks . | . . . . Recycling Unit Hacks . | . . . . Scanalyzer . | . . . . Garrison Access Hacks . | . . . . Unauthorized Hacks 27 | . 11 . 16 Terminals 19 | . 8 . 11 Track 1 | . . . 1 Assimilate 5 | . 2 . 3 Botnet 10 | . 4 . 6 Operators 3 | . 2 . 1 Fabricators . | . . . . Repair Stations 1 | . 1 . . Mechanics 1 | . 1 . . Recycling Units 5 | . 2 . 3 Recyclers 2 | . 1 . 1 Mask 3 | . 1 . 2 Scanalyzers 2 | . . . 2 Extract 2 | . . . 2 Garrison Access . | . . . . Data Cores Recovered . | . . . . Used . | . . . . Hacking Detections 16 | . 7 . 9 Full Trace Events 1 | . . . 1 Feedback Events . | . . . . Feedback Blocked . | . . . . Robot Schematics Acquired . | . . . . Robots Built . | . . . . Authchips . | . . . . Time . | . . . . Total Robot Build Rating . | . . . . Part Schematics Acquired 6 | . . . 6 Parts Built . | . . . . Authchips . | . . . . Time . | . . . . Total Part Build Rating . | . . . . Parts Repaired . | . . . . Time . | . . . . Parts Recycled . | . . . . Recycled Matter . | . . . . Retrieved Matter . | . . . . Retrieved Components . | . . . . Parts Scanalyzed . | . . . . Part Schematics Acquired . | . . . . Parts Damaged . | . . . . Bothacking | -11 -10 -10 -9 ------------ Run | Scr Mat Min Mat Used RIF Installer . | . . . . Robots Hacked 6 | . 2 . 4 Non-combat 6 | . 2 . 4 Combat . | . . . . Robot Hacks Applied 8 | . 2 . 6 no_distress 7 | . 2 . 5 find_recycling 1 | . . . 1 Relay Couplers Released . | . . . . Fabnet Peak Effective % . | . . . . Robots Rewired . | . . . . Allies Hacked . | . . . . Hacks Repelled . | . . . . Allies | -11 -10 -10 -9 -------- Run | Scr Mat Min Mat Total Allies 3 | . 1 . 2 Largest Group 2 | . 1 1 2 Highest-Rated Group 20 | . 10 10 20 Highest-Rated Ally 10 | . 10 10 10 Total Orders 13 | . . 2 11 STAY 6 | . . 1 5 ROAM 1 | . . . 1 FOLLOW 6 | . . 1 5 Ally Attacks . | . . . . Total Damage . | . . . . Kills . | . . . . Allies Corrupted . | . . . . Allies Melted . | . . . . Intel | -11 -10 -10 -9 ------- Run | Scr Mat Min Mat Robot Analysis Total . | . . . . Derelict Logs Recovered 2 | . . 2 . Drone Launches . | . . . . Drone Recoveries . | . . . . Exploration | -11 -10 -10 -9 ------------- Run | Scr Mat Min Mat Turns Passed 7954 | 47 2022 1353 4532 Spaces Moved 5968 | 33 1542 548 3845 Core 12 | 8 . . 4 Treads 1994 | . 476 260 1258 Legs 317 | 25 292 . . Wheels . | . . . . Hover 2174 | . . 288 1886 Flight 1471 | . 774 . 697 Fastest Speed 29 | 50 37 236 29 Average Speed 109 | 107 115 237 88 Slowest Speed 320 | 190 320 240 240 Overloaded Moves . | . . . . Propulsion Burnouts . | . . . . Robots Hopped 4 | . 1 . 3 Cave-ins Triggered . | . . . . Exploration Rate (%) 73 | 4 98 95 98 Regions Visited 3 Branch Regions 1 Pre-discovered Areas . | . . . . Known Exits Taken . | . . . . Unknown Exits Taken 3 | 1 1 1 . Scrap Searched 1 | . . 1 . Spaces Dug 2 | . . . 2 Terrain Destroyed 129 | . 48 33 48 Melee 2 | . . . 2 Projectile . | . . . . AOE 127 | . 48 33 46 Terrain Rammed . | . . . . Walls Destroyed . | . . . . Machines Disabled . | . . . . Actions | -11 -10 -10 -9 --------- Run | Scr Mat Min Mat Total 7014 | 42 1738 581 4653 Wait 382 | . 64 2 316 Move 5957 | 32 1539 547 3839 Hop 4 | . 1 . 3 Pick Up 123 | 5 35 5 78 Fast Attach 26 | 5 6 . 15 Attach 45 | . 12 2 31 Detach 15 | . 6 . 9 Swap 147 | . 19 10 118 Drop 98 | . 19 2 77 Fire 200 | . 35 11 154 Melee 15 | . 2 1 12 Ram 2 | . . 1 1 Kick . | . . . . Crush . | . . . . Escape Stasis . | . . . . Rewire . | . . . . Trap . | . . . . Miscellaneous . | . . . . Route ------- -11/Scrapyard -10/Materials (discovered 5 exits: *Mat x3 / [*Min x2]) -10/Mines (discovered 2 exits: *Mat x2) -9/Materials (discovered 4 exits: [*Mat x3] / *Min) History --------- Turn | Location | Event 12 | -11/Scrapyard | Discovered new exit (range 16) 48 | -11/Scrapyard | Entered Materials 304 | -10/Materials | Discovered new exit (range 5) 310 | -10/Materials | Build established: Mutant 377 | -10/Materials | Discovered new exit (range 11) 474 | -10/Materials | Discovered new exit (range 14) 539 | -10/Materials | Discovered new exit (range 7) 639 | -10/Materials | Discovered new exit (range 14) 879 | -10/Materials | Core integrity fell below 50% 2065 | -10/Materials | System corruption reached 10% 2070 | -10/Materials | Entered Mines 2070 | -10/Mines | Accompanied by 1 ally 2197 | -10/Mines | A weapon hastily lodged in a ceiling crevice suddenly fell to the ground 2285 | -10/Mines | Learned Materials garrison access intel 2420 | -10/Mines | Discovered new exit (range 8) 2559 | -10/Mines | Discovered new exit (range 14) 3423 | -10/Mines | Entered Materials 3423 | -9/Materials | Accompanied by 1 ally 3423 | -9/Materials | Evolved 2 slots: Propulsion x1, Utility x1 3424 | -9/Materials | Identified exit to Mines 4100 | -9/Materials | Discovered new exit (range 16) 4166 | -9/Materials | Build established: Sprinter 4324 | -9/Materials | Lost 4 parts (1p1n2w) 4594 | -9/Materials | Build established: Scavenger-Mutant 4913 | -9/Materials | Discovered new exit (range 16) 5084 | -9/Materials | Build established: Mutant 5409 | -9/Materials | Build established: Scavenger-Mutant 5955 | -9/Materials | Build established: Mutant 6177 | -9/Materials | Core integrity fell below 50% 6880 | -9/Materials | Discovered new exit (range 5) 7423 | -9/Materials | First assault squad dispatched 7507 | -9/Materials | System corruption reached 10% 7544 | -9/Materials | Lost 3 parts (1n1u1w) 7914 | -9/Materials | Core integrity fell below 20% 7948 | -9/Materials | Lost 4 parts (1p1n1u1w) 7955 | -9/Materials | Destroyed self with Mini Grenade Launcher Last Messages --------------- 07908_ Technician 2a destroyed. 07908_ Imp. Light Armor Plating severed. 07910_ Imp. Light Armor Plating destroyed. 07912_ Adv. Treads severed. 07913_ Imp. Medium Laser destroyed. 07917_ Aerolev Unit destroyed. 07919_ Dropped Hcp. Storage Unit. 07923_ System corrupted: Matter fused (-5). 07925_ G-47 Trooper destroyed. 07927_ Acquired 60 matter. 07931_ Acquired 108 matter. 07936_ Acquired 18 matter. 07942_ L-31 Rogue destroyed. 07946_ System corrupted: Component data lost. 07946_ Acquired 5 matter. 07949_ Acquired 25 matter. 07950_ R-06 Scavenger destroyed. 07952_ Destroyed Imp. Aluminum Leg. 07953_ U-05 Engineer lays Concrete. 07955_ U-05 Engineer destroyed. Map ----- +----------------------------------------------------+ | ??# # # " " #"""![= =## #???? | | ?############ + """ # ]=!! * ## ! #???? | | ?# #?# # """ # "!""!% ## #???? | | ## """ ### # """ # """= ## ! #???? | | + """ + #! "" ## ]! #???? | | ## """ ####+######### [ ## ] #???? | | ## # ##### #+################?? | | ## """ # """ # + #?? | | ## """ # """ #! ! % ###### """ T #?? | | ## """ # """ # = #????# """ #?? | | ## # # [ #### #????# """ #?? | | #######+### # ] #= ##?# #????# #?? | | #???# # "Y" # ###+###### ||! #?? | | #???# # """ #[ ## |!! ##? | | #???# / # [ T ## |!! #? | | #???# ##/########## * ## ##? | | ????# ## ### ] [ ######+###### | | ###### == = %= """ #???#^ | | # % > [ ! * """ ##### ^ | | + % / ]ll= """ + | | # ## # =%=# """ ##### | | # ##" |"| "##==%# #???# !! | | # ##"""""""# ![!####+#####???# ^ !! | | # ########## ! # ####### ! | | # #????????# # # # | | ###+######?????????#@ # """ # "" # | | ####### #?????????????# # """ # T" # | | # #?????????????# + """ # "" + | | # #??############ # # # | | # #??# """ ! ## ####+### # """ | | # #??# """ # ### ######### """ | | # #??# """ # % """ | | # #??# + % | | #####??# ""# % | | #??????# T"# ##+########### ##### | | #??????# ""## ## #??# #???#! | | ? #??????# ## ## """"""" #??# #??## | | ? #??????############ ## """"""" #??# #??#" | | ??#####?????????????????# ## """"""" #??# #??#T= | | ????????????????????????# ## """"""" #??# #??#" | | ????????????????????????# ## """"""" #??# #??## | | ????????????????????????# ## #??# #???# | | ????????????????????????# ## #??# #???# | | ????????????????????????# ############??# #???# | | ????????????????????????# #?????????????# #???# | | ????????????????????????# #?????????????# #???# | | ?????????????????????#### #?????????????# #???# | | ?????????????????######## #?????????????# #???# | | ??????????######## = #????????????##+##### | | ??????????# # #????????????# # | +----------------------------------------------------+ Best States ------------- Heat Dissipation 28 Energy Generation 23 Energy Capacity 280 Matter Stores 300 Matter Capacity 300 Sight Range 16 Robot Scan Range 14 Terrain Scan Density 10 Additional Mass Support 6 Armor Coverage 300 Evasion (%) 72 Targeting Accuracy 5 Recoil Reduction 3 Offensive Hacking 10 Item Schematics ----------------- Imp. Light Cannon | -9/Materials | Extracted Sml. Laser | -9/Materials | Extracted Lgt. Cannon | -9/Materials | Extracted Lrg. Battery | -9/Materials | Extracted Autogun | -9/Materials | Extracted Visual Processing Unit | -9/Materials | Extracted Robot Schematics ------------------ None Fabricated ------------ Nothing Alien Tech Used ----------------- None Achievements -------------- None Challenges ------------ None Game ------ Seed AuthchipPropulsionClaymores Manual? 0 Play Time 02:38:10 Cumulative 50.2 hours Start 2022.05.18 @ 16:12:18 End 2022.05.18 @ 22:39:30 Sessions 1 Manual Loads 0 Difficulty Rogue Special Mode None Game No. 34 Rogue 32 Adventurer 0 Explorer 2 Win Type - Total 0 Types 0/0/0/0/0/0/0/0/0 Lore% 24 Gallery% 28 Achievement% 24 Wizard Run 0 Options --------- ASCII 0 Keyboard 0 Movement Numpad Keybinds 0 Fullscreen 1 Font 18/SmallcapsGlow Map View 76x50 Tactical HUD 1 Map Filters NONE Filters NONE Steam 1 RUN: 1dfd17ea-543b-414a-95a7-f1ea9afc2d7d